[Event "WYCC 2018 G18"]
[Site "Halkidiki"]
[Date "2018.10.29"]
[Round "10"]
[White "Miller, Rachel"]
[Black "Li, Yilin"]
[Result "1-0"]
[ECO "B53"]
[WhiteElo "1859"]
[BlackElo "1993"]
[Annotator "NA RC"]
[PlyCount "145"]
[EventDate "2018.10.20"]
[EventType "swiss"]
[EventCountry "GRE"]
[SourceTitle "playchess.com"]
[Source "ChessBase"]
[SourceQuality "1"]
[TimeControl "40/5400+30:1800+30"]

1. e4 c5 2. Nf3 d6 3. d4 cxd4 4. Qxd4 a6 5. h3 Nc6 6. Qe3 g6 7. Be2 Bg7 8. O-O Nf6 9. c4 O-O $11 {LiveBook: 141 Games} 10. Nc3 Be6 11. Rb1 Qa5 12. Bd2 Qc5 13. Rfd1 h6 14. Rdc1 Rac8 15. Bf1 Qxe3 16. Bxe3 Nd7 17. Na4 Rc7 18. b3 f5 19. Nh4 f4 20. Bd2 Nde5 21. Nb6 f3 22. Nd5 Rcc8 23. Nf4 Bf7 24. Nxf3 Nxf3+ 25. gxf3 Nd4 26. Kg2 g5 27. Ne2 Bh5 28. Nxd4 Bxd4 29. Be2 g4 30. hxg4 Bxg4 31. Be3 Bxe3 32. fxe3 Bd7 33. f4 Kf7 34. Rh1 Rh8 35. Bh5+ Kf6 36. Kf3 Rcg8 37. Rhg1 Be6 38. f5 Bf7 39. Bxf7 Kxf7 40. Kf4 Kf6 41. Rxg8 Rxg8 42. Rh1 Rh8 43. Rg1 h5 44. Rg6+ Kf7 45. e5 dxe5+ 46. Kxe5 h4 47. Rg2 h3 48. Rh2 Rh4 49. a3 Kg7 50. e4 Kh6 51. f6 exf6+ 52. Kxf6 Rf4+ 53. Ke5 Rf3 54. Kd4 Kg5 55. e5 Kf5 56. b4 Ke6 57. a4 Rf4+ 58. Kc5 Rh4 59. b5 Kxe5 60. Kb6 Rxc4 61. Kxb7 axb5 62. axb5 Rh4 63. b6 Kd6 64. Ka6 Kc6 65. Rc2+ Kd7 66. b7 h2 67. b8=Q h1=Q 68. Rc7+ Ke6 69. Qb6+ Kf5 70. Rc5+ Kf4 71. Qb4+ Qe4 72. Qxe4+ Kxe4 73. Rc4+ 1-0

[Event "WYCC 2018 G18"]
[Site "Halkidiki"]
[Date "2018.10.29"]
[Round "10"]
[White "Jie, Tianhui"]
[Black "Golsta, Madara"]
[Result "1-0"]
[ECO "E91"]
[WhiteElo "1849"]
[BlackElo "1938"]
[Annotator "NA"]
[PlyCount "83"]
[EventDate "2018.10.20"]
[EventType "swiss"]
[EventCountry "GRE"]
[SourceTitle "playchess.com"]
[Source "ChessBase"]
[SourceQuality "1"]
[TimeControl "40/5400+30:1800+30"]

1. d4 {[%emt 0:00:00]} Nf6 {[%emt 0:01:36]} 2. c4 {[%emt 0:00:00]} g6 {[%emt 0:00:24]} 3. Nc3 {[%emt 0:00:00]} Bg7 {[%emt 0:00:26]} 4. e4 {[%emt 0:00:00]} d6 {[%emt 0:00:36]} 5. Nf3 {[%emt 0:00:04]} O-O {[%emt 0:00:27]} 6. Be2 {[%emt 0:00:07]} Na6 {[%emt 0:03:54]} 7. O-O {[%emt 0:00:16]} e5 {[%emt 0:00:18]} 8. Be3 {[%emt 0:00:12]} Ng4 {[%emt 0:02:00]} 9. Bg5 {[%emt 0:00:20]} f6 {[%emt 0:02:40]} 10. Bc1 {[%emt 0:00:23]} Nh6 {[%emt 0:01:16]} 11. dxe5 {[%emt 0:01:01]} fxe5 {[%emt 0:06:44]} 12. Be3 {[%emt 0:02:11]} Nf7 {[%emt 0:01:32]} 13. Qd2 {[%emt 0:04:51]} c6 {[%emt 0:02:38]} 14. Rad1 {[%emt 0:00:57]} Nc7 {[%emt 0:01:19]} 15. Ng5 {[%emt 0:01:59]} Ne6 {[%emt 0:05:33]} 16. Nxf7 {[%emt 0:02:32]} Kxf7 {[%emt 0:00:23]} 17. c5 {[%emt 0:13:40]} dxc5 {[%emt 0:05:03]} 18. Qxd8 {[%emt 0:05:03]} Rxd8 {[%emt 0:00:24]} 19. Rxd8 {[%emt 0:00:43]} Nxd8 {[%emt 0:00:06]} 20. Bxc5 {[%emt 0:00:18]} Bf8 {[%emt 0:00:26]} 21. Be3 {[%emt 0:00:59]} Ne6 {[%emt 0:00:41]} 22. Bc4 {[%emt 0:01:30]} Kg7 {[%emt 0:00:35]} 23. Rd1 {[%emt 0:01:08]} b5 {[%emt 0:00:31]} 24. Nxb5 {[%emt 0:18:08]} cxb5 {[%emt 0:03:06]} 25. Bd5 {[%emt 0:00:23]} Bb7 {[%emt 0:02:20]} 26. Bxb7 {[%emt 0:00:21]} Rd8 {[%emt 0:00:11]} 27. Rxd8 {[%emt 0:00:31]} Nxd8 {[%emt 0:00:04]} 28. Ba6 {[%emt 0:01:24]} b4 {[%emt 0:00:36]} 29. Bxa7 {[%emt 0:01:07]} Nc6 {[%emt 0:00:07]} 30. Be3 {[%emt 0:01:18]} Kf6 {[%emt 0:00:18]} 31. Bc4 {[%emt 0:02:33]} h6 {[%emt 0:01:59]} 32. Bc1 {[%emt 0:01:37]} g5 {[%emt 0:01:31]} 33. a4 {[%emt 0:01:00]} Na5 {[%emt 0:02:35]} 34. Bd5 {[%emt 0:00:33]} Bc5 {[%emt 0:00:08]} 35. Kf1 {[%emt 0:01:39]} Bd4 {[%emt 0:01:07]} 36. Ke2 {[%emt 0:01:20]} Ke7 {[%emt 0:00:13]} 37. Bd2 {[%emt 0:00:59]} Bc5 {[%emt 0:00:25]} 38. g3 {[%emt 0:04:08]} Kf6 {[%emt 0:00:50]} 39. f4 {[%emt 0:00:55]} gxf4 {[%emt 0:01:52]} 40. gxf4 {[%emt 0:00:00]} h5 {[%emt 0:00:00]} 41. Kf3 {[%emt 0:01:28]} exf4 {[%emt 0:00:52]} 42. Bxf4 {[%emt 0:00:31]} 1-0

[Event "WYCC 2018 G18"]
[Site "Halkidiki"]
[Date "2018.10.29"]
[Round "10"]
[White "Cosme Contreras, Trilce"]
[Black "Radeva, Viktoria"]
[Result "0-1"]
[ECO "A13"]
[WhiteElo "1829"]
[BlackElo "2163"]
[Annotator "NA"]
[PlyCount "104"]
[EventDate "2018.10.20"]
[EventType "swiss"]
[EventCountry "GRE"]
[SourceTitle "playchess.com"]
[Source "ChessBase"]
[SourceQuality "1"]
[TimeControl "40/5400+30:1800+30"]

1. c4 {[%emt 0:00:00]} e6 {[%emt 0:00:00]} 2. Nc3 {[%emt 0:00:10]} d5 {[%emt 0:00:00]} 3. e3 {[%emt 0:00:34]} Nf6 {[%emt 0:00:00]} 4. Nf3 {[%emt 0:00:35]} c6 {[%emt 0:00:12]} 5. b3 {[%emt 0:01:00]} Bd6 {[%emt 0:00:23]} 6. Bb2 {[%emt 0:00:33]} Nbd7 {[%emt 0:00:09]} 7. d4 {[%emt 0:02:50]} O-O {[%emt 0:00:12]} 8. Bd3 {[%emt 0:01:29]} Qe7 {[%emt 0:08:29]} 9. O-O {[%emt 0:08:36]} e5 {[%emt 0:12:37]} 10. dxe5 {[%emt 0:11:03]} Nxe5 {[%emt 0:00:09]} 11. Nxe5 {[%emt 0:04:34]} Qxe5 {[%emt 0:00:51]} 12. g3 {[%emt 0:00:41]} dxc4 {[%emt 0:12:26]} 13. Bxc4 {[%emt 0:03:39]} Bh3 {[%emt 0:03:07]} 14. Re1 {[%emt 0:02:52]} Rad8 {[%emt 0:02:21]} 15. Bf1 {[%emt 0:10:10]} Bxf1 {[%emt 0:13:03]} 16. Rxf1 {[%emt 0:00:21]} Ba3 {[%emt 0:03:31]} 17. Qc2 {[%emt 0:05:56]} Bxb2 {[%emt 0:00:06]} 18. Qxb2 {[%emt 0:00:03]} Ne4 {[%emt 0:00:11]} 19. Na4 {[%emt 0:14:41]} Qh5 {[%emt 0:07:51]} 20. Qc2 {[%emt 0:04:39]} Ng5 {[%emt 0:13:44]} 21. Rad1 {[%emt 0:05:23]} Qf3 {[%emt 0:10:34]} 22. h4 {[%emt 0:00:56]} Ne4 {[%emt 0:00:51]} 23. Rxd8 {[%emt 0:08:43]} Rxd8 {[%emt 0:00:02]} 24. Nc3 {[%emt 0:00:12]} Nxc3 {[%emt 0:03:22]} 25. Qxc3 {[%emt 0:00:06]} h6 {[%emt 0:02:17]} 26. Qa5 {[%emt 0:02:44]} Rd7 {[%emt 0:04:59]} 27. Qxa7 {[%emt 0:00:39]} g5 {[%emt 0:00:08]} 28. Qb8+ {[%emt 0:00:59]} Kh7 {[%emt 0:00:43]} 29. hxg5 {[%emt 0:00:26]} hxg5 {[%emt 0:00:11]} 30. Qc8 {[%emt 0:01:18]} Rd6 {[%emt 0:00:33]} 31. Qh3+ {[%emt 0:00:11]} Kg7 {[%emt 0:00:44]} 32. Qg2 {[%emt 0:03:29]} Qxg2+ {[%emt 0:00:36]} 33. Kxg2 {[%emt 0:00:05]} Rd2 {[%emt 0:00:02]} 34. a3 {[%emt 0:01:39]} Ra2 {[%emt 0:00:31]} 35. Rb1 {[%emt 0:00:52]} Rxa3 {[%emt 0:00:05]} 36. Rb2 {[%emt 0:00:11]} g4 {[%emt 0:01:29]} 37. e4 {[%emt 0:00:26]} c5 {[%emt 0:00:50]} 38. Rc2 {[%emt 0:01:24]} b6 {[%emt 0:00:50]} 39. Rc3 {[%emt 0:00:05]} Ra2 {[%emt 0:00:42]} 40. Re3 {[%emt 0:00:00]} Kf6 {[%emt 0:00:00]} 41. e5+ {[%emt 0:07:52]} Kf5 {[%emt 0:02:05]} 42. Kf1 {[%emt 0:01:25]} Rb2 {[%emt 0:03:11]} 43. Kg2 {[%emt 0:02:09]} Ke6 {[%emt 0:01:12]} 44. Kf1 {[%emt 0:00:22]} b5 {[%emt 0:02:00]} 45. Ke1 {[%emt 0:01:26]} Kd5 {[%emt 0:03:15]} 46. Kf1 {[%emt 0:01:46]} c4 {[%emt 0:03:55]} 47. bxc4+ {[%emt 0:00:05]} bxc4 {[%emt 0:00:04]} 48. f4 {[%emt 0:00:44]} Kd4 {[%emt 0:03:34]} 49. Re1 {[%emt 0:00:14]} c3 {[%emt 0:00:32]} 50. f5 {[%emt 0:00:49]} c2 {[%emt 0:00:28]} 51. e6 {[%emt 0:00:37]} fxe6 {[%emt 0:00:35]} 52. fxe6 {[%emt 0:00:20]} Rb1 {[%emt 0:00:08]} 0-1

[Event "WYCC 2018 G18"]
[Site "Halkidiki"]
[Date "2018.10.29"]
[Round "10"]
[White "Simic, Anja"]
[Black "Martos Amiguet, Valentina"]
[Result "1/2-1/2"]
[ECO "D70"]
[WhiteElo "1813"]
[BlackElo "1775"]
[Annotator "NA"]
[PlyCount "94"]
[EventDate "2018.10.20"]
[EventType "swiss"]
[EventCountry "GRE"]
[SourceTitle "playchess.com"]
[Source "ChessBase"]
[SourceQuality "1"]
[TimeControl "40/5400+30:1800+30"]

1. d4 {[%emt 0:00:00]} d5 {[%emt 0:00:00]} 2. c4 {[%emt 0:00:00]} c6 {[%emt 0:00:00]} 3. Nf3 {[%emt 0:00:00]} Nf6 {[%emt 0:00:00]} 4. Nbd2 {[%emt 0:00:06]} e6 {[%emt 0:00:07]} 5. g3 {[%emt 0:01:00]} Nbd7 {[%emt 0:00:08]} 6. Bg2 {[%emt 0:00:16]} Be7 {[%emt 0:00:07]} 7. O-O {[%emt 0:00:18]} O-O {[%emt 0:00:07]} 8. Re1 {[%emt 0:06:10]} Qb6 {[%emt 0:05:39]} 9. a3 {[%emt 0:13:52]} a5 {[%emt 0:00:39]} 10. b3 {[%emt 0:06:05]} Rd8 {[%emt 0:01:29]} 11. Bb2 {[%emt 0:02:16]} c5 {[%emt 0:01:51]} 12. Qc2 {[%emt 0:05:18]} Qc7 {[%emt 0:04:17]} 13. e4 {[%emt 0:08:31]} dxe4 {[%emt 0:00:57]} 14. Nxe4 {[%emt 0:01:17]} Nxe4 {[%emt 0:00:17]} 15. Qxe4 {[%emt 0:03:44]} Nf6 {[%emt 0:00:24]} 16. Qc2 {[%emt 0:02:48]} cxd4 {[%emt 0:08:22]} 17. Nxd4 {[%emt 0:02:19]} Bc5 {[%emt 0:12:04]} 18. Nb5 {[%emt 0:07:13]} Qe7 {[%emt 0:00:41]} 19. Nc3 {[%emt 0:07:11]} Qc7 {[%emt 0:14:04]} 20. Ne4 {[%emt 0:06:13]} Nxe4 {[%emt 0:01:02]} 21. Rxe4 {[%emt 0:03:21]} Bd7 {[%emt 0:03:30]} 22. Be5 {[%emt 0:10:33]} Bd6 {[%emt 0:05:12]} 23. Bxd6 {[%emt 0:00:38]} Qxd6 {[%emt 0:00:11]} 24. Rh4 {[%emt 0:06:25]} h6 {[%emt 0:00:31]} 25. Bxb7 {[%emt 0:01:22]} Rab8 {[%emt 0:00:38]} 26. Bg2 {[%emt 0:00:37]} Bc6 {[%emt 0:00:40]} 27. c5 {[%emt 0:00:44]} Qc7 {[%emt 0:01:21]} 28. Bxc6 {[%emt 0:00:11]} Qxc6 {[%emt 0:00:12]} 29. Ra4 {[%emt 0:00:30]} Rd5 {[%emt 0:07:02]} 30. Rc4 {[%emt 0:03:31]} Rbd8 {[%emt 0:00:41]} 31. b4 {[%emt 0:01:05]} Rd2 {[%emt 0:05:48]} 32. Qe4 {[%emt 0:00:15]} R8d5 {[%emt 0:02:35]} 33. bxa5 {[%emt 0:01:27]} f5 {[%emt 0:00:38]} 34. Qb1 {[%emt 0:00:47]} Rxc5 {[%emt 0:06:30]} 35. Rxc5 Qxc5 {[%emt 0:00:13]} 36. Qe1 {[%emt 0:01:03]} Rd6 {[%emt 0:04:39]} 37. Qb4 {[%emt 0:00:49]} Qd5 {[%emt 0:01:27]} 38. a4 {[%emt 0:00:25]} Ra6 {[%emt 0:02:53]} 39. Qb5 {[%emt 0:00:26]} Rxa5 {[%emt 0:01:23]} 40. Qxd5 {[%emt 0:00:00]} exd5 {[%emt 0:00:00]} 41. Kf1 {[%emt 0:05:12]} Kf7 {[%emt 0:02:07]} 42. Ke2 {[%emt 0:00:16]} Ke6 {[%emt 0:00:15]} 43. Kd3 {[%emt 0:00:34]} Kd6 {[%emt 0:01:08]} 44. Kd4 {[%emt 0:03:27]} g6 {[%emt 0:00:29]} 45. h4 {[%emt 0:01:36]} Kc6 {[%emt 0:05:32]} 46. Ra2 {[%emt 0:03:27]} Kd6 {[%emt 0:00:49]} 47. Ra1 {[%emt 0:12:30]} Kc6 {[%emt 0:02:58] Ke4} 1/2-1/2

[Event "WYCC 2018 G18"]
[Site "Halkidiki"]
[Date "2018.10.29"]
[Round "10"]
[White "Cibikova, Sofia Anna"]
[Black "Nistor, Valentina"]
[Result "0-1"]
[ECO "B24"]
[WhiteElo "1809"]
[BlackElo "1881"]
[Annotator "NA"]
[PlyCount "60"]
[EventDate "2018.10.20"]
[EventType "swiss"]
[EventCountry "GRE"]
[SourceTitle "playchess.com"]
[Source "ChessBase"]
[SourceQuality "1"]
[TimeControl "40/5400+30:1800+30"]

1. e4 {[%emt 0:00:00]} c5 {[%emt 0:00:00]} 2. Nc3 {[%emt 0:00:00]} Nc6 {[%emt 0:00:00]} 3. g3 {[%emt 0:00:00]} g6 {[%emt 0:00:00]} 4. Bg2 {[%emt 0:00:03]} Bg7 {[%emt 0:00:00]} 5. d3 {[%emt 0:00:19]} e6 {[%emt 0:00:10]} 6. Nge2 {[%emt 0:00:46]} Nge7 {[%emt 0:00:56]} 7. Be3 {[%emt 0:01:19]} d6 {[%emt 0:02:50]} 8. O-O {[%emt 0:03:00]} b6 {[%emt 0:04:30]} 9. Qd2 {[%emt 0:05:17]} O-O {[%emt 0:07:32]} 10. f4 {[%emt 0:03:50]} Bb7 {[%emt 0:01:41]} 11. g4 {[%emt 0:08:48]} f5 {[%emt 0:03:21]} 12. gxf5 {[%emt 0:06:10]} exf5 {[%emt 0:00:40]} 13. Rae1 {[%emt 0:06:16]} Na5 {[%emt 0:13:07]} 14. b3 {[%emt 0:09:45]} d5 {[%emt 0:03:35]} 15. exd5 {[%emt 0:04:26]} Nxd5 {[%emt 0:00:17]} 16. Bxd5+ {[%emt 0:05:51]} Bxd5 {[%emt 0:00:20]} 17. Bxc5 {[%emt 0:03:53]} Nxb3 {[%emt 0:03:43]} 18. axb3 {[%emt 0:02:13]} bxc5 {[%emt 0:00:09]} 19. Qe3 {[%emt 0:03:13]} Rc8 {[%emt 0:27:14]} 20. Ra1 {[%emt 0:07:41]} Re8 {[%emt 0:01:54]} 21. Qf2 {[%emt 0:01:25]} Re7 {[%emt 0:01:47]} 22. Ra4 {[%emt 0:05:33]} Ba8 {[%emt 0:04:52]} 23. h3 {[%emt 0:07:01]} Qe8 {[%emt 0:03:52]} 24. Rc4 {[%emt 0:06:14]} Re3 {[%emt 0:03:00]} 25. Kh2 {[%emt 0:05:19]} Rf3 {[%emt 0:01:53]} 26. Qg1 {[%emt 0:00:14]} Rxf1 {[%emt 0:09:39]} 27. Qxf1 {[%emt 0:00:04]} Qe3 {[%emt 0:00:13]} 28. Nd1 {[%emt 0:03:20]} Qd2 {[%emt 0:01:15]} 29. Nf2 {[%emt 0:00:33]} Re8 {[%emt 0:00:43]} 30. Ng3 {[%emt 0:00:33]} Re1 {[%emt 0:00:20]} 0-1

[Event "WYCC 2018 G18"]
[Site "Halkidiki"]
[Date "2018.10.29"]
[Round "10"]
[White "Tonso, Liina"]
[Black "Bauyrzhan, Arnash"]
[Result "0-1"]
[ECO "A29"]
[WhiteElo "1805"]
[BlackElo "2011"]
[Annotator "NA"]
[PlyCount "86"]
[EventDate "2018.10.20"]
[EventType "swiss"]
[EventCountry "GRE"]
[SourceTitle "playchess.com"]
[Source "ChessBase"]
[SourceQuality "1"]
[TimeControl "40/5400+30:1800+30"]

1. c4 {[%emt 0:00:00]} e5 {[%emt 0:00:00]} 2. Nc3 {[%emt 0:00:00]} Nf6 {[%emt 0:00:16]} 3. Nf3 {[%emt 0:00:38]} Nc6 {[%emt 0:00:15]} 4. g3 {[%emt 0:00:46]} d5 {[%emt 0:00:54]} 5. cxd5 {[%emt 0:00:52]} Nxd5 {[%emt 0:00:12]} 6. Bg2 {[%emt 0:00:42]} Nb6 {[%emt 0:00:29]} 7. O-O {[%emt 0:01:31]} Be7 {[%emt 0:01:03]} 8. d3 {[%emt 0:06:35]} O-O {[%emt 0:00:24]} 9. a4 {[%emt 0:09:01]} Be6 {[%emt 0:06:25]} 10. a5 {[%emt 0:06:49]} Nd5 {[%emt 0:03:42]} 11. d4 {[%emt 0:18:15]} exd4 {[%emt 0:02:08]} 12. Nxd4 {[%emt 0:02:43]} Nxd4 $11 {[%emt 0:01:28]} 13. Nxd5 {[%emt 0:05:07]} Bxd5 {[%emt 0:01:14]} 14. Qxd4 {[%emt 0:00:45]} Bxg2 {[%emt 0:02:33]} 15. Qxd8 {[%emt 0:00:22]} Rfxd8 {[%emt 0:02:32]} 16. Kxg2 {[%emt 0:00:15]} Bf6 {[%emt 0:02:58]} 17. Rb1 {[%emt 0:05:43]} Rd5 {[%emt 0:01:59]} 18. b4 {[%emt 0:03:51]} Re8 {[%emt 0:01:39]} 19. Be3 {[%emt 0:05:27]} a6 {[%emt 0:04:15]} 20. Rfc1 {[%emt 0:03:29]} c6 {[%emt 0:06:11]} 21. Rd1 {[%emt 0:04:32]} Red8 {[%emt 0:00:25]} 22. Rxd5 {[%emt 0:01:39]} Rxd5 {[%emt 0:00:08]} 23. Bc5 {[%emt 0:01:02]} g6 {[%emt 0:01:32]} 24. g4 {[%emt 0:08:06]} Kg7 {[%emt 0:00:32]} 25. h3 {[%emt 0:01:37]} Be5 {[%emt 0:03:40]} 26. Rb3 {[%emt 0:01:59]} Rd2 {[%emt 0:04:00]} 27. Kf3 {[%emt 0:03:33]} Kf6 {[%emt 0:02:50]} 28. Rd3 {[%emt 0:02:12]} Rxd3+ {[%emt 0:00:13]} 29. exd3 {[%emt 0:00:07]} Ke6 {[%emt 0:00:10]} 30. Ke4 {[%emt 0:01:45]} f5+ {[%emt 0:00:26]} 31. gxf5+ {[%emt 0:00:49]} gxf5+ {[%emt 0:00:06]} 32. Ke3 {[%emt 0:00:32]} Kd5 {[%emt 0:00:42]} 33. Bf8 {[%emt 0:01:42]} Bb8 {[%emt 0:06:57]} 34. Bc5 {[%emt 0:00:30]} Bc7 {[%emt 0:00:21]} 35. Kf3 {[%emt 0:00:52]} Bxa5 {[%emt 0:20:50]} 36. Kf4 {[%emt 0:01:54]} Bd8 {[%emt 0:00:33]} 37. Kxf5 {[%emt 0:00:38]} a5 {[%emt 0:01:31]} 38. f4 {[%emt 0:00:45]} a4 {[%emt 0:01:26]} 39. Be3 {[%emt 0:01:34]} a3 {[%emt 0:00:32]} 40. Bc1 {[%emt 0:00:00]} a2 {[%emt 0:00:00]} 41. Bb2 {[%emt 0:01:40]} Bb6 {[%emt 0:00:24]} 42. Kf6 {[%emt 0:01:37]} Bd4+ {[%emt 0:00:08]} 43. Bxd4 {[%emt 0:00:19]} Kxd4 {[%emt 0:00:02]} 0-1

[Event "WYCC 2018 G18"]
[Site "Halkidiki"]
[Date "2018.10.29"]
[Round "10"]
[White "Abeysinghe, H M H Janandani"]
[Black "Nass, Sara"]
[Result "1-0"]
[ECO "B14"]
[WhiteElo "1698"]
[BlackElo "1986"]
[Annotator "NA"]
[PlyCount "49"]
[EventDate "2018.10.20"]
[EventType "swiss"]
[EventCountry "GRE"]
[SourceTitle "playchess.com"]
[Source "ChessBase"]
[SourceQuality "1"]
[TimeControl "40/5400+30:1800+30"]

1. e4 {[%emt 0:00:00]} c6 {[%emt 0:01:45]} 2. d4 {[%emt 0:00:00]} d5 {[%emt 0:00:07]} 3. exd5 {[%emt 0:00:06]} cxd5 {[%emt 0:00:05]} 4. c4 {[%emt 0:00:05]} Nf6 {[%emt 0:02:01]} 5. Nc3 {[%emt 0:00:31]} e6 {[%emt 0:00:23]} 6. c5 {[%emt 0:00:21]} Nc6 {[%emt 0:00:21]} 7. Bb5 {[%emt 0:02:45]} Bd7 {[%emt 0:07:15]} 8. Bf4 {[%emt 0:03:32]} Be7 {[%emt 0:06:21]} 9. Nf3 {[%emt 0:01:09]} O-O {[%emt 0:02:40]} 10. O-O {[%emt 0:00:24]} Ne4 {[%emt 0:16:33]} 11. Bxc6 {[%emt 0:06:34]} Nxc3 {[%emt 0:04:22]} 12. Qc2 {[%emt 0:01:32]} Bxc6 {[%emt 0:04:29]} 13. Qxc3 {[%emt 0:00:12]} Bb5 {[%emt 0:01:19]} 14. Rfe1 {[%emt 0:01:21]} a5 {[%emt 0:10:16]} 15. a3 {[%emt 0:02:35]} a4 {[%emt 0:02:44]} 16. b4 {[%emt 0:05:51]} axb3 {[%emt 0:00:45]} 17. Qxb3 {[%emt 0:00:05]} Qa5 {[%emt 0:05:50]} 18. Reb1 {[%emt 0:04:36]} Bc6 {[%emt 0:03:01]} 19. Ne5 {[%emt 0:00:35]} Bf6 {[%emt 0:01:11]} 20. Nf3 {[%emt 0:02:28]} Qa4 {[%emt 0:02:55]} 21. Qd3 {[%emt 0:02:17]} Ra5 {[%emt 0:03:07]} 22. Qc3 {[%emt 0:04:00]} Rfa8 {[%emt 0:03:11]} 23. Rb4 {[%emt 0:01:42]} Qxa3 {[%emt 0:02:22]} 24. Rxa3 {[%emt 0:01:02]} Rxa3 {[%emt 0:00:06]} 25. Qc1 {[%emt 0:04:31]} 1-0

[Event "WYCC 2018 G18"]
[Site "Halkidiki"]
[Date "2018.10.29"]
[Round "10"]
[White "Yu, Cindy"]
[Black "Hunt, Fikirte"]
[Result "0-1"]
[ECO "B90"]
[WhiteElo "1532"]
[BlackElo "1827"]
[Annotator "NA"]
[PlyCount "74"]
[EventDate "2018.10.20"]
[EventType "swiss"]
[EventCountry "GRE"]
[SourceTitle "playchess.com"]
[Source "ChessBase"]
[SourceQuality "1"]
[TimeControl "40/5400+30:1800+30"]

1. e4 {[%emt 0:00:00]} c5 {[%emt 0:00:00]} 2. Nf3 {[%emt 0:00:00]} d6 {[%emt 0:00:00]} 3. d4 {[%emt 0:00:00]} cxd4 {[%emt 0:00:00]} 4. Nxd4 {[%emt 0:00:00]} Nf6 {[%emt 0:00:00]} 5. Nc3 {[%emt 0:00:00]} a6 {[%emt 0:00:04]} 6. h3 {[%emt 0:00:04]} e5 {[%emt 0:00:13]} 7. Nde2 {[%emt 0:00:06]} Be6 {[%emt 0:00:34]} 8. g4 h6 {[%emt 0:04:14]} 9. Bg2 {[%emt 0:03:41]} Be7 {[%emt 0:03:51]} 10. Ng3 {[%emt 0:01:26]} Nbd7 {[%emt 0:12:13]} 11. g5 {[%emt 0:19:12]} hxg5 {[%emt 0:03:46]} 12. Bxg5 {[%emt 0:00:34]} Qb6 {[%emt 0:00:40]} 13. Rb1 {[%emt 0:04:52]} Rc8 {[%emt 0:14:11]} 14. f4 {[%emt 0:15:33]} Ng4 {[%emt 0:07:01]} 15. hxg4 {[%emt 0:02:22]} Rxh1+ {[%emt 0:00:06]} 16. Bxh1 {[%emt 0:04:20]} Qg1+ {[%emt 0:00:08]} 17. Nf1 {[%emt 0:08:44]} Qxh1 {[%emt 0:00:33]} 18. Bxe7 {[%emt 0:01:30]} Kxe7 {[%emt 0:00:08]} 19. fxe5 {[%emt 0:10:31]} Qh4+ {[%emt 0:03:06]} 20. Kd2 {[%emt 0:01:09]} Nxe5 {[%emt 0:01:18]} 21. Ne3 {[%emt 0:06:12]} Nc4+ {[%emt 0:01:41]} 22. Nxc4 {[%emt 0:00:24]} Rxc4 {[%emt 0:00:09]} 23. Qg1 {[%emt 0:03:37]} Qg5+ {[%emt 0:07:54]} 24. Ke1 {[%emt 0:04:51]} Bxg4 {[%emt 0:02:06]} 25. Qf2 {[%emt 0:01:58]} Be6 {[%emt 0:04:44]} 26. Rd1 {[%emt 0:01:58]} Qe5 {[%emt 0:00:34]} 27. Kd2 {[%emt 0:02:19]} Rd4+ {[%emt 0:04:13]} 28. Kc1 {[%emt 0:01:25]} Rxd1+ {[%emt 0:00:20]} 29. Kxd1 {[%emt 0:00:12]} g5 {[%emt 0:00:11]} 30. a3 {[%emt 0:02:04]} g4 {[%emt 0:00:16]} 31. Qg2 {[%emt 0:01:02]} Qd4+ {[%emt 0:00:45]} 32. Kc1 {[%emt 0:00:52]} Qe3+ {[%emt 0:00:30]} 33. Kd1 {[%emt 0:01:13]} g3 {[%emt 0:01:30]} 34. Nd5+ {[%emt 0:00:54]} Bxd5 {[%emt 0:00:17]} 35. exd5 {[%emt 0:00:16]} f5 {[%emt 0:00:13]} 36. Qe2 {[%emt 0:00:41]} f4 {[%emt 0:00:30]} 37. Qxe3+ {[%emt 0:00:22]} fxe3 {[%emt 0:00:12]} 0-1

[Event "WYCC 2018 G18"]
[Site "Halkidiki"]
[Date "2018.10.30"]
[Round "11"]
[White "Avramidou, Anastasia"]
[Black "Gajcin, Marina"]
[Result "1/2-1/2"]
[ECO "A08"]
[WhiteElo "2285"]
[BlackElo "2153"]
[Annotator "NA"]
[PlyCount "77"]
[EventDate "2018.10.20"]
[EventType "swiss"]
[EventCountry "GRE"]
[SourceTitle "playchess.com"]
[Source "ChessBase"]
[SourceQuality "1"]
[TimeControl "40/5400+30:1800+30"]

1. d3 {[%emt 0:00:00]} g6 {[%emt 0:00:28]} 2. Nf3 {[%emt 0:00:00]} Bg7 {[%emt 0:00:06]} 3. g3 {[%emt 0:00:00]} d5 {[%emt 0:00:54]} 4. Bg2 {[%emt 0:00:00]} Nf6 {[%emt 0:00:40]} 5. O-O {[%emt 0:00:00]} O-O {[%emt 0:00:03]} 6. Nbd2 {[%emt 0:00:04]} c5 {[%emt 0:02:06]} 7. e4 {[%emt 0:00:23]} Nc6 {[%emt 0:07:04]} 8. Qe2 {[%emt 0:03:49] A08: King's Indian Attack} Bg4 {[%emt 0:07:19]} 9. c3 {[%emt 0:01:25]} dxe4 {[%emt 0:06:17]} 10. dxe4 {[%emt 0:00:36]} Qc8 {[%emt 0:05:52]} 11. Re1 {[%emt 0:01:13]} Rd8 $146 {[%emt 0:02:45]} ({Predecessor:} 11... Rb8 12. Qf1 b5 13. h3 Bxf3 14. Nxf3 e5 15. Nh2 Qc7 {1-0 (41) Epishin,V (2577)-Nowik,V (2171) Neustadt an der Weinstrasse 2008}) 12. Nc4 {[%emt 0:07:36]} Nd7 {[%emt 0:23:38]} 13. Ne3 {[%emt 0:04:49]} Bxf3 {[%emt 0:00:45]} 14. Bxf3 {[%emt 0:00:08]} Nde5 {[%emt 0:00:47]} 15. Bg2 {[%emt 0:00:10]} b5 {[%emt 0:05:43]} 16. Nd5 {[%emt 0:15:42]} c4 {[%emt 0:02:23]} 17. a4 {[%emt 0:02:46]} b4 {[%emt 0:02:32]} 18. Bg5 {[%emt 0:11:58]} f6 {[%emt 0:02:54]} 19. Be3 {[%emt 0:00:26]} b3 {[%emt 0:02:03]} 20. Red1 {[%emt 0:08:11]} Nd3 {[%emt 0:05:42]} 21. e5 {[%emt 0:13:42]} Ndxe5 {[%emt 0:03:25]} 22. Bd4 {[%emt 0:01:21]} Re8 {[%emt 0:07:20]} 23. Nf4 {[%emt 0:02:49]} Rb8 {[%emt 0:01:20]} 24. Bh3 {[%emt 0:09:14]} f5 {[%emt 0:00:56]} 25. Bg2 {[%emt 0:00:15]} e6 {[%emt 0:03:23]} 26. Bxc6 {[%emt 0:03:00]} Nxc6 {[%emt 0:00:01]} 27. Bxg7 {[%emt 0:00:09]} Kxg7 {[%emt 0:00:01]} 28. Qxc4 {[%emt 0:00:11]} Kf7 {[%emt 0:00:47]} 29. Nd3 {[%emt 0:04:37]} Kg8 {[%emt 0:01:45]} 30. a5 {[%emt 0:02:21]} a6 {[%emt 0:00:53]} 31. Ra3 {[%emt 0:02:44]} Rb5 {[%emt 0:00:20]} 32. Rxb3 {[%emt 0:00:47]} Nxa5 {[%emt 0:03:11]} 33. Qxc8 Rxc8 34. Rxb5 {[%emt 0:01:38]} axb5 {[%emt 0:00:01]} 35. Re1 {[%emt 0:00:58]} Kf7 {[%emt 0:01:37]} 36. Re5 {[%emt 0:00:20]} Rb8 {[%emt 0:00:09]} 37. Rc5 {[%emt 0:00:30]} Rb7 {[%emt 0:00:10]} 38. Kf1 {[%emt 0:02:07]} Ke7 {[%emt 0:00:26]} 39. Ke2 $11 {[%emt 0:00:53]} 1/2-1/2